Cogmind - Beta 16 @@@ ROGUE MODE // 2025.11.02 @ 17:35:29 Player: Not_Jesus8 Result: Self-destructed Performance ------------- Evolutions (2) 1000 Regions Visited (7) 1400 Robots Destroyed (8) 40 Value Destroyed (137) 137 Prototype IDs (24) 480 Alien Tech Used (0) 0 Bonus (409) 409 TOTAL SCORE: 3466 Bonus ------- Pacifist 200 Follower Combat Kills 209 Cogmind --------- Core Integrity 550/550 Matter 254/300 Energy 250/250 System Corruption 0% Temperature Cool (19) Movement Flying (50) Location -8/Materials Parts ------- > --- POWER (1) -------- Ion Engine > --- PROPULSION (4) --- Flying Fortress v7 > --- UTILITY (4) ------ Makeshift System Shield Thief Drone Bay (3/3) > --- WEAPON (2) ------- Rocket Launcher Rocket Launcher > --- INVENTORY (5) ---- Light Assault Rifle Improved Datajack Peak State ------------ > --- POWER ------------ Ion Engine > --- PROPULSION ------- Flying Fortress v7 > --- UTILITY ---------- Makeshift System Shield Thief Drone Bay > --- WEAPON ----------- Rocket Launcher Rocket Launcher > --- INVENTORY -------- (None) [Rating: 48] Favorites ----------- Power Ion Engine Engine Ion Engine Propulsion Flight Unit Flight Unit Flight Unit Utility Makeshift System Shield Device Thief Drone Bay Hackware Makeshift System Shield Weapon Rocket Launcher Ballistic Gun Makeshift Shrapnel Gun Launcher Rocket Launcher Build | -11 -10 -10 -9 -9 -9 -8 -8 ------- Run | Yrd Mat Min Mat Min Exi Min Mat Slots Evolved 4 | . . . 2 . . . 2 Power . | . . . . . . . . Propulsion 2 | . . . . . . . 2 Utility 2 | . . . 2 . . . . Weapon . | . . . . . . . . Parts Attached 9 | . . . . 3 3 1 2 Power 1 | . . . . . . 1 . Engine 1 | . . . . . . 1 . Core . | . . . . . . . . Reactor . | . . . . . . . . Propulsion 2 | . . . . 1 . . 1 Treads . | . . . . . . . . Leg . | . . . . . . . . Wheel . | . . . . . . . . Hover . | . . . . . . . . Flight 2 | . . . . 1 . . 1 Utility 2 | . . . . . 1 . 1 Device 1 | . . . . . . . 1 Storage . | . . . . . . . . Processor . | . . . . . . . . Hackware 1 | . . . . . 1 . . Protection . | . . . . . . . . Artifact . | . . . . . . . . Weapon 4 | . . . . 2 2 . . Energy Gun . | . . . . . . . . Energy Cannon . | . . . . . . . . Ballistic Gun 1 | . . . . 1 . . . Ballistic Cannon . | . . . . . . . . Launcher 3 | . . . . 1 2 . . Special Weapon . | . . . . . . . . Impact Weapon . | . . . . . . . . Slashing Weapon . | . . . . . . . . Piercing Weapon . | . . . . . . . . Special Melee Weapon . | . . . . . . . . Unidentified Prototypes 1 | . . . . . . . 1 Parts Lost 1 | . . . . . . 1 . Power . | . . . . . . . . Propulsion 1 | . . . . . . 1 . Utility . | . . . . . . . . Weapon . | . . . . . . . . Highest Loss Streak 1 | . . . . . . 1 . To Critical Strikes . | . . . . . . . . Average Backups 2 | . . . 1 4 3 2 . Power . | . . . . . . . . Propulsion . | . . . . . . 1 . Utility . | . . . . . 1 1 . Weapon 1 | . . . 1 3 2 . . Tool/Special . | . . . . . . . . Unused Backups 2 | . . . . . 1 . 1 Power . | . . . . . . . . Propulsion . | . . . . . . . . Utility . | . . . . . . . . Weapon 1 | . . . . . 1 . . Tool/Special 1 | . . . . . . . 1 Average Slot Usage (%) 32 | . . . . 18 34 42 53 Engine 1 | . . . . . . 1 9 Flight 8 | . . . . 10 11 8 9 Hackware 6 | . . . . . 7 11 9 Ballistic Gun 2 | . . . . 8 5 . . Launcher 12 | . . . . . 10 22 18 Peak Build Rating 48 | . . . . 6 12 12 48 Average Rating 11 | . . . . 4 9 11 47 On Entrance 3 | . . . . . 6 12 12 Avg Prop Armor Cover (%) . | . . . . . . . . Naked Turns 98 | . 43 22 30 3 . . . Heaviest Build 17 | . . . . 2 8 13 17 Greatest Support 50 | 3 3 3 3 4 4 4 50 Greatest Overweight (x) 4 | . . . . . 1 4 . Average Overweight (x) . | . . . . . . 1 . Largest Inventory Capacity 5 | 5 5 5 5 5 5 5 5 Average Capacity 5 | 5 5 5 5 5 5 5 5 Most Carried 5 | . . . 4 5 5 5 2 Average Carried 4 | . . . 1 4 4 5 . Final Capacity 5 | 5 5 5 5 5 5 5 5 Final Carried 5 | . . . 4 5 5 5 2 Class Distribution -------------------- 53% | Commander-Mutant 46% | Mutant Dominant Class ---------------- Mutant | -10/Materials Mutant | -10/Mines Mutant | -9/Materials Mutant | -9/Mines Commander-Mutant | -9/Exiles Commander-Mutant | -8/Mines Mutant | -8/Materials Resources | -11 -10 -10 -9 -9 -9 -8 -8 ----------- Run | Yrd Mat Min Mat Min Exi Min Mat Matter Collected 353 | 191 . 9 . 63 . 52 38 Remotely . | . . . . . . . . Salvage Created 78 | . . . . 6 . 60 12 Parts 11 | . . . . 3 . 3 5 Haulers Intercepted . | . . . . . . . . Recyclers Shooed . | . . . . . . . . Parts Field Recycled . | . . . . . . . . Retrieved Matter . | . . . . . . . . Parts Self-Destructed . | . . . . . . . . Prevented . | . . . . . . . . Parts Restored . | . . . . . . . . Kills | -11 -10 -10 -9 -9 -9 -8 -8 ------- Run | Yrd Mat Min Mat Min Exi Min Mat Combat Hostiles Destroyed 7 | . . . . 4 . 1 2 AOE 7 | . . . . 4 . 1 2 Classes Destroyed 2 | . . . . 1 . 1 . Swarmer 6 | . . . . 4 . . 2 Grunt 2 | . . . . . . 2 . Best Kill Streak 4 | . . . . 4 . 1 2 Combat Bots Only 4 | . . . . 4 . 1 2 Max Kills in Single Turn 2 | . . . . 2 . 2 2 Gunslinging . | . . . . . . . . Exploded 2 | . . . . 2 . 1 2 Melee . | . . . . . . . . Uniques/NPCs Destroyed . | . . . . . . . . Combat | -11 -10 -10 -9 -9 -9 -8 -8 -------- Run | Yrd Mat Min Mat Min Exi Min Mat Hostile Shots Fired 16 | . 1 . . 7 . 4 4 Missed 10 | . . . . 3 . 3 4 Hits 6 | . 1 . . 4 . 1 . Projectile 6 | . 1 . . 4 . 1 . Damage Taken 222 | . 10 . . 184 . 23 5 Core 181 | . 10 . . 171 . . . Absorbed by Shields . | . . . . . . . . Core Remaining (%) 84 | 100 . 96 . . . 57 . Volleys Fired 6 | . . . . 3 . 1 2 Largest 2 | . . . . 1 . 2 2 Hottest 66 | . . . . 33 . 66 66 Shots Fired 9 | . . . . 3 . 2 4 Gun . | . . . . . . . . Cannon . | . . . . . . . . Launcher 9 | . . . . 3 . 2 4 Special . | . . . . . . . . Kinetic . | . . . . . . . . Thermal . | . . . . . . . . Explosive 9 | . . . . 3 . 2 4 Electromagnetic . | . . . . . . . . Robot Hit Streak 1 | . . . . 1 . . . Robot Miss Streak 3 | . . . . . . . 3 Penetration Max . | . . . . . . . . Secondary Targets . | . . . . . . . . Shots Hit Robots 1 | . . . . 1 . . . Core Hits 11 | . . . . 2 . 6 3 Critical Kills . | . . . . . . . . Critical Parts Destroyed . | . . . . . . . . Critical Strikes . | . . . . . . . . Melee Attacks . | . . . . . . . . Impact . | . . . . . . . . Slashing . | . . . . . . . . Piercing . | . . . . . . . . Sneak Attacks . | . . . . . . . . Combat Hostiles . | . . . . . . . . Follow-up Attacks . | . . . . . . . . Damage Inflicted 730 | . . . . 354 . 298 78 Guns . | . . . . . . . . Cannons . | . . . . . . . . Explosions 730 | . . . . 354 . 298 78 Melee . | . . . . . . . . Ramming . | . . . . . . . . Kinetic . | . . . . . . . . Thermal 200 | . . . . 52 . 148 . Explosive 530 | . . . . 302 . 150 78 Electromagnetic . | . . . . . . . . Impact . | . . . . . . . . Slashing . | . . . . . . . . Piercing . | . . . . . . . . Highest Corruption . | . . . . . . . . Average Corruption . | . . . . . . . . Corruption Purged . | . . . . . . . . Corruption Blocked . | . . . . . . . . Overload Shots . | . . . . . . . . Overflow Damage 59 | . . . . 59 . . . Projectiles . | . . . . . . . . Explosions 59 | . . . . 59 . . . Melee . | . . . . . . . . Knockbacks . | . . . . . . . . Impact . | . . . . . . . . Kinetic . | . . . . . . . . Secondary . | . . . . . . . . Self-Inflicted Damage 169 | . . . . 155 . 9 5 Shots 6 | . . . . 4 . 1 1 Rammed . | . . . . . . . . Targets Rammed . | . . . . . . . . Kicked . | . . . . . . . . Crushed . | . . . . . . . . Highest Temperature 19 | . . . . . . . 19 Average Temperature 11 | . . . . . . . 11 Received Heat Transfer 15 | . 6 . . . . 9 . Siege Activations . | . . . . . . . . Martial Activations . | . . . . . . . . Shielding Activations . | . . . . . . . . Robots Disrupted . | . . . . . . . . Combat Hostiles . | . . . . . . . . Robots Corrupted . | . . . . . . . . Combat Hostiles . | . . . . . . . . Parts Fried . | . . . . . . . . Impact Corruptions . | . . . . . . . . Robots Melted . | . . . . . . . . Combat Hostiles . | . . . . . . . . Parts Melted . | . . . . . . . . Heat Transferred 300 | . . . . 100 . 200 . Parts Sabotaged . | . . . . . . . . Parts Stolen . | . . . . . . . . Parts Stripped . | . . . . . . . . Power Chain Reactions . | . . . . . . . . Alert | -11 -10 -10 -9 -9 -9 -8 -8 ------- Run | Yrd Mat Min Mat Min Exi Min Mat Maximum Alert Level . | . . . . . . . . Low Security (%) 100 | 100 100 100 100 100 . 100 100 Level 1 . | . . . . . . . . Level 2 . | . . . . . . . . Level 3 . | . . . . . . . . Level 4 . | . . . . . . . . Level 5 . | . . . . . . . . High Security . | . . . . . . . . Max Security . | . . . . . . . . Peak Influence 131 | . 30 7 . 131 . 114 116 Initial 26 | . . 7 . . . . 26 Average 36 | . 3 6 . 80 . 26 23 Influence Increases 542 | . 30 . . 131 . 223 158 Destroy 0b10 Robot/C 280 | . . . . 80 . 120 80 Destroy Leader 50 | . . . . 10 . 20 20 Allied During Kill 38 | . . . . . . 35 3 Disable Machine 45 | . . . . 15 . 30 . Destroy Structure 69 | . . . . 26 . 18 25 Lose Combat Pursuer 60 | . 30 . . . . . 30 Influence Decreases 426 | . 10 20 . 100 31 155 110 Entered New Map 86 | . . 13 . . 31 . 42 Time Decay 258 | . 10 7 . 100 . 95 46 Lost Ally 82 | . . . . . . 60 22 Squads Dispatched 1 | . . . . . . . 1 Investigation . | . . . . . . . . Extermination . | . . . . . . . . Reinforcement 1 | . . . . . . . 1 Assault . | . . . . . . . . Garrison . | . . . . . . . . Intercept . | . . . . . . . . Searches Triggered . | . . . . . . . . Construction Impeded . | . . . . . . . . Haulers Reinforced . | . . . . . . . . Active Scanning Responses . | . . . . . . . . Cargo Convoy Interrupts . | . . . . . . . . Stealth | -11 -10 -10 -9 -9 -9 -8 -8 --------- Run | Yrd Mat Min Mat Min Exi Min Mat Distress Signals 1 | . . . . . . . 1 Communications Jammed . | . . . . . . . . Distress Signals . | . . . . . . . . Times Spotted 18 | . 4 . . 4 . 4 6 Peak Tracking Total 4 | . 2 . . 4 . 3 4 Tactical Retreats 2 | . 1 . . . . . 1 Traps | -11 -10 -10 -9 -9 -9 -8 -8 ------- Run | Yrd Mat Min Mat Min Exi Min Mat Traps Triggered . | . . . . . . . . Indirectly . | . . . . . . . . Trap Hack Attempts . | . . . . . . . . Triggered . | . . . . . . . . Disarmed . | . . . . . . . . Reprogrammed . | . . . . . . . . Reused . | . . . . . . . . Traps Extracted . | . . . . . . . . Installed . | . . . . . . . . Triggered . | . . . . . . . . Machines | -11 -10 -10 -9 -9 -9 -8 -8 ---------- Run | Yrd Mat Min Mat Min Exi Min Mat Machines Disabled 3 | . . . . 1 . 2 . Max in Single Turn 1 | . . . . 1 . 1 . Machines Repaired . | . . . . . . . . Machines Dismantled . | . . . . . . . . Machines Sabotaged . | . . . . . . . . Overloaded Fab Kills . | . . . . . . . . Hacking | -11 -10 -10 -9 -9 -9 -8 -8 --------- Run | Yrd Mat Min Mat Min Exi Min Mat Machines Accessed 4 | . 1 . . 1 2 . . Terminals 1 | . 1 . . . . . . Fabricators . | . . . . . . . . Repair Stations . | . . . . . . . . Recycling Units . | . . . . . . . . Scanalyzers . | . . . . . . . . Garrison Access . | . . . . . . . . Total Hacks 29 | . 4 . . 1 24 . . Successful 25 | . . . . 1 24 . . Failed 4 | . 4 . . . . . . Catastrophic . | . . . . . . . . Database Lockouts . | . . . . . . . . Manual 5 | . 4 . . . 1 . . Terminals 4 | . 4 . . . . . . Fabricators . | . . . . . . . . Repair Stations . | . . . . . . . . Recycling Units . | . . . . . . . . Scanalyzers . | . . . . . . . . Garrison Access . | . . . . . . . . Terminal Hacks 25 | . . . . 1 24 . . Record 23 | . . . . . 23 . . Open Door 1 | . . . . 1 . . . Proto ID Catalog 1 | . . . . . 1 . . Fabricator Hacks . | . . . . . . . . Repair Station Hacks . | . . . . . . . . Recycling Unit Hacks . | . . . . . . . . Scanalyzer . | . . . . . . . . Garrison Access Hacks . | . . . . . . . . Unauthorized Hacks . | . . . . . . . . Terminals . | . . . . . . . . Fabricators . | . . . . . . . . Repair Stations . | . . . . . . . . Recycling Units . | . . . . . . . . Scanalyzers . | . . . . . . . . Garrison Access . | . . . . . . . . Data Cores Recovered . | . . . . . . . . Used . | . . . . . . . . Hacking Detections 1 | . 1 . . . . . . Full Trace Events . | . . . . . . . . Feedback Events . | . . . . . . . . Feedback Blocked . | . . . . . . . . Robot Schematics Acquired . | . . . . . . . . Robots Built . | . . . . . . . . Authchips . | . . . . . . . . Time . | . . . . . . . . Total Robot Build Rating . | . . . . . . . . Part Schematics Acquired . | . . . . . . . . Parts Built . | . . . . . . . . Authchips . | . . . . . . . . Time . | . . . . . . . . Total Part Build Rating . | . . . . . . . . Part Studies Acquired . | . . . . . . . . Parts Repaired . | . . . . . . . . Time . | . . . . . . . . Parts Recycled . | . . . . . . . . Recycled Matter . | . . . . . . . . Retrieved Matter . | . . . . . . . . Retrieved Components . | . . . . . . . . Parts Scanalyzed . | . . . . . . . . Part Schematics Acquired . | . . . . . . . . Parts Damaged . | . . . . . . . . Bothacking | -11 -10 -10 -9 -9 -9 -8 -8 ------------ Run | Yrd Mat Min Mat Min Exi Min Mat Used RIF Installer . | . . . . . . . . Robots Hacked . | . . . . . . . . Non-combat . | . . . . . . . . Combat . | . . . . . . . . Robot Hacks Applied . | . . . . . . . . Relay Couplers Released . | . . . . . . . . Fabnet Peak Effective % . | . . . . . . . . Robots Rewired 4 | . . . . . 4 . . Allies Hacked . | . . . . . . . . Hacks Repelled . | . . . . . . . . Allies | -11 -10 -10 -9 -9 -9 -8 -8 -------- Run | Yrd Mat Min Mat Min Exi Min Mat Total Allies 7 | . . . . 3 4 . . Largest Group 7 | . . . . 3 7 7 3 Highest-Rated Group 85 | . . . . 40 85 85 40 Highest-Rated Ally 21 | . . . . 16 21 21 16 Total Orders 2 | . . . . . . . 2 RETURN 2 | . . . . . . . 2 Ally Attacks 43 | . . . . . . 27 16 Total Damage 403 | . . . . . . 291 112 Kills 7 | . . . . . . 5 2 Allies Corrupted . | . . . . . . . . Allies Melted . | . . . . . . . . Intel | -11 -10 -10 -9 -9 -9 -8 -8 ------- Run | Yrd Mat Min Mat Min Exi Min Mat Active Infowar (turns) . | . . . . . . . . Robot Analysis Total . | . . . . . . . . Derelict Logs Recovered 2 | . . . . 2 . . . Drone Launches 4 | . . . . . . . 4 Drone Recoveries 4 | . . . . . . . 4 Exploration | -11 -10 -10 -9 -9 -9 -8 -8 ------------- Run | Yrd Mat Min Mat Min Exi Min Mat Turns Passed 1186 | 15 43 22 30 215 323 437 101 Spaces Moved 1433 | 29 86 43 51 367 407 309 141 Core 267 | 29 86 43 51 3 . 55 . Treads . | . . . . . . . . Legs . | . . . . . . . . Wheels . | . . . . . . . . Hover . | . . . . . . . . Flight 1166 | . . . . 364 407 254 141 Fastest Speed 40 | 50 50 50 50 40 40 100 50 Average Speed 68 | 50 50 50 50 40 59 132 50 Slowest Speed 250 | 50 50 50 50 50 120 250 50 Overloaded Moves . | . . . . . . . . Propulsion Burnouts . | . . . . . . . . Robots Hopped 1 | . . . . 1 . . . Potential Cave-ins . | . . . . . . . . Cave-ins Triggered . | . . . . . . . . Exploration Rate (%) 39 | 3 22 15 9 80 88 82 16 Regions Visited 7 Branch Regions 4 Pre-discovered Areas 1 | . . . . . 1 . . Known Exits Taken . | . . . . . . . . Unknown Exits Taken 7 | 1 1 1 1 1 1 1 . Scrap Searched 3 | . . 1 . 1 . 1 . Spaces Dug 14 | . . . . 14 . . . Terrain Destroyed 94 | . . . . 35 . 19 40 Melee . | . . . . . . . . Projectile . | . . . . . . . . AOE 94 | . . . . 35 . 19 40 Terrain Rammed . | . . . . . . . . Walls Destroyed . | . . . . . . . . Machines Disabled . | . . . . . . . . Actions | -11 -10 -10 -9 -9 -9 -8 -8 --------- Run | Yrd Mat Min Mat Min Exi Min Mat Total 1628 | 28 85 42 54 429 489 334 167 Wait 113 | . . . . 56 14 22 21 Move 1424 | 28 85 42 50 364 406 308 141 Hop 1 | . . . . 1 . . . Pick Up 7 | . . . 4 1 1 . 1 Fast Attach 5 | . . . . 2 1 2 . Attach 5 | . . . . 1 2 . 2 Detach 1 | . . . . 1 . . . Swap . | . . . . . . . . Drop 4 | . . . . . 3 1 . Fire 6 | . . . . 3 . 1 2 Melee . | . . . . . . . . Ram . | . . . . . . . . Kick . | . . . . . . . . Crush . | . . . . . . . . Escape Stasis . | . . . . . . . . Rewire 62 | . . . . . 62 . . Trap . | . . . . . . . . Miscellaneous . | . . . . . . . . Route ------- -11/Scrapyard -10/Materials -10/Mines -9/Materials -9/Mines (discovered 3 exits: *Mat x2 / *Exi) -9/Exiles -8/Mines -8/Materials History --------- Turn | Location | Event 7 | -11/Scrapyard | Discovered new exit (range 15) 16 | -11/Scrapyard | Entered Materials 52 | -10/Materials | Discovered new exit (range 14) 59 | -10/Materials | Entered Mines 70 | -10/Mines | Discovered new exit (range 14) 72 | -10/Mines | Met a Derelict bent on vengeance 81 | -10/Mines | Entered Materials 81 | -9/Materials | Evolved 2 slots: Utility x2 105 | -9/Materials | Discovered new exit (range 12) 111 | -9/Materials | Entered Mines 159 | -9/Mines | A weapon hastily lodged in a ceiling crevice suddenly fell to the ground 178 | -9/Mines | Learned location of 1 exit from Lower Caves 224 | -9/Mines | Found the Drone Emporium 224 | -9/Mines | Found Prototype Device 238 | -9/Mines | Discovered new exit (range 14) 244 | -9/Mines | Assisted by bots powering up and referring to "LRC-V3" 255 | -9/Mines | Discovered new exit (range 14) 268 | -9/Mines | Deemed a non-threat by the Exiles lab entrance 268 | -9/Mines | Discovered new exit (range 5) 314 | -9/Mines | Build established: Mutant 326 | -9/Mines | Entered Exiles 326 | -9/Exiles | Found Exiles lab destroyed 326 | -9/Exiles | Accompanied by 3 allies 403 | -9/Exiles | Learned location of Zion (-6) 482 | -9/Exiles | Opened EX-Vault 489 | -9/Exiles | Found Flying Fortress v7 622 | -9/Exiles | Discovered new exit (range 12) 642 | -9/Exiles | Build established: Commander-Mutant 649 | -9/Exiles | Entered Mines 649 | -8/Mines | Accompanied by 7 allies 734 | -8/Mines | Lost 3 allies 1081 | -8/Mines | Discovered new exit (range 2) 1086 | -8/Mines | Entered Materials 1086 | -8/Materials | Accompanied by 3 allies 1086 | -8/Materials | Evolved 2 slots: Propulsion x2 1087 | -8/Materials | Identified Thief Drone Bay 1187 | -8/Materials | Self-destructed Last Messages --------------- 01110_ Trooper 2b destroyed. 01112_ Y-45 Defender suffers critical hit (Burn). 01112_ Y-45 Defender destroyed. 01114_ Acquired 38 matter. 01119_ Thief Drone released from Thief Drone Bay. 01137_ Acquired Imp. Datajack. 01146_ Connecting with Terminal... 01146_ Current location identified: Materials 01168_ Trooper 2a destroyed. 01171_ ALERT: Hostiles spotted, dispatching reinforcements to Terminal M007. 01172_ S-10 Pest destroyed. 01174_ S-10 Pest Lgt. Assault Rifle ripped off. 01178_ Thief Drone delivers Lgt. Assault Rifle. 01178_ Thief Drone retrieved by Thief Drone Bay (repair cost: 4). 01180_ Connecting with Terminal... 01184_ S-10 Pest destroyed. Map ----- +----------------------------------------------------+ | ???????????????????# """"" #????? | | ???????????????????# """"" #????#""" | | ???????????????????# """"" #????#""" | | ???????????????????# """"" #????#""" | | ???????????????????# """"" #????# | | ???????????????????# ?"""" #?????##### | | ???????????????????# ???"" #?????# | | ???????????????????# ????? #?????# [ | | ??????????????????????????###?????# | | ??????????????????????????????????# | | ??????????????????????????????????# | | ????????????????????????########### | | ????????????????????????# ## | | ????????????????????????# """ ####+# | | ????????????????????????# """ # | | ????????????????????????# """ + | | ????????????????????????# # | | ????????????????????????# "" "" ###/## | | ??????##############????# ""S"" # | | ??????# ^ #????# """" # T | | ??????# ####?# # | | ??????# """"" ###??####### | | ??????# ""T"" ] #????????# ! | | ??????# ###??????# | | ??????# [ ! #########+## | | ??????# @ =%[ =*%[%![ | | ??????# [ *[### ######### | | ??????# # =#?#+#???????? | | ??????# + ! ### #???????????? | | ??????# ### #????????????????? | | ?????# #?# #????????????????? | | ?????#! !#?# """ #????????????????? | | ?????##!!!!##?# """ #????????????????? | | ??????#####???#= """ #????????????????? | | ??????????????########????????????????? | | ??????????????????????????????????????? | | ??????????????????????????????????????? | | ??????????????????????????????????????? | | ??????????????????????????????????????? | | ??????????????????????????????????????? | | ??????????????????????????????????????? | | ??????????????????????????????????????? | | ??????????????????????????????????????? | | ??????????????????????????????????????? | | ??????????????????????????????????????? | | ??????????????????????????????????????? | | ??????????????????????????????????????? | | ??????????????????????????????????????? | | ??????????????????????????????????????? | | ??????????????????????????????????????? | +----------------------------------------------------+ Best States ------------- Heat Dissipation 31 Energy Generation 10 Energy Capacity 250 Matter Stores 300 Matter Capacity 300 Sight Range 16 Terrain Scan Density 10 Evasion (%) 62 Defensive Hacking 11 Item Schematics ----------------- None Robot Schematics ------------------ None Fabricated ------------ Nothing Repaired ---------- Nothing Studied --------- None Alien Tech Used ----------------- None Achievements -------------- Luggage Code Challenges ------------ None Game ------ Seed RelayDirectedStorage Manual? 0 Play Time 00:11:47 Cumulative 29.0 hours Start 2025.11.02 @ 17:23:39 End 2025.11.02 @ 17:35:29 Sessions 1 Manual Loads 0 Difficulty Rogue Special Mode None Game No. 63 Rogue 63 Adventurer 0 Explorer 0 Win Type - Total 2 Types 2/0/0/0/0/0/0/0/0/0 Lore% 38 Gallery% 30 Achievement% 29 Wizard Run 0 Options --------- Layout 1 ASCII 0 Keyboard 1 Movement Arrows Keybinds 0 Fullscreen 1 Font 16/SmallcapsGlow Map View 50x54 Zoom Use 0% Tactical HUD 1 Map Filters NONE Filters NONE Steam 1 RUN: cde81a85-4ee6-4d01-b226-7ca953cd9b87